bitfinex/quotes_SOLUSD_20220228
["timestamp","ask_amount","ask_price","bid_price","bid_amount"]
[1646030723156,4.623,86.55,86.477,2.62592165]
[1646030723355,6.0,86.549,86.477,2.62592165]
[1646030723557,2.74678921,86.56,86.474,4.623]
[1646030723759,2.74678921,86.55,86.474,4.623]
[1646030723957,115.3,86.548,86.474,4.623]
[1646030724157,115.3,86.546,86.474,4.623]
[1646030724356,115.3,86.544,86.474,4.623]
[1646030724558,6.0,86.543,86.474,4.623]
[1646030724760,6.0,86.545,86.474,4.623]
[1646030724964,4.28675895,86.543,86.474,4.623]
[1646030725158,116.71886316,86.541,86.474,4.623]
[1646030725358,115.3,86.539,86.474,4.623]
[1646030725560,17.3543,86.53,86.474,4.623]
[1646030725759,6.0,86.529,86.474,4.623]
[1646030726160,115.3,86.528,86.474,4.623]
[1646030726366,115.3,86.526,86.474,4.623]
[1646030726562,115.3,86.524,86.422,3.0758694]
[1646030726766,115.3,86.524,86.399,47.7469]
[1646030726767,117.03765682,86.519,86.399,47.7469]
[1646030726961,3.01,86.51,86.4,6.0]
[1646030727161,173.66133817,86.517,86.397,32.7675846]
[1646030727162,115.3,86.499,86.398,6.0]
[1646030727361,115.3,86.489,86.398,6.0]
[1646030727564,115.3,86.487,86.398,6.0]
[1646030727767,1.61555642,86.484,86.398,6.0]
[1646030728063,115.3,86.469,86.377,3.05611661]
[1646030728263,116.67416459,86.467,86.376,24.3437]
[1646030728462,1.70019057,86.464,86.376,24.3437]
[1646030728665,1.62369968,86.461,86.376,24.3437]
[1646030728865,6.0,86.46,86.377,2.59767716]
[1646030729064,45.54305813,86.459,86.38,17.3677]
[1646030729265,45.54305813,86.459,86.381,2.75881096]
[1646030729465,45.54305813,86.459,86.382,6.0]
[1646030729665,45.54305813,86.459,86.382,8.74678921]
[1646030730066,45.54305813,86.459,86.383,24.44115981]
[1646030730267,45.54305813,86.459,86.384,2.36701099]
[1646030730466,45.54305813,86.459,86.401,1.72178128]
[1646030730667,45.54305813,86.459,86.402,6.0]
[1646030733283,45.54305813,86.459,86.38,17.366]
[1646030733484,45.54305813,86.459,86.347,2.78791421]
[1646030733485,115.3,86.457,86.347,2.78791421]
[1646030733684,115.3,86.455,86.348,2.74788909]
[1646030733887,6.13734943,86.456,86.336,23.2439]
[1646030733888,115.3,86.449,86.36,23.4032]
[1646030734085,115.3,86.447,86.36,23.4032]
[1646030734284,172.81917128,86.444,86.361,31.00896484]
[1646030734485,53.43901199,86.429,86.361,31.00896484]
[1646030734687,6.0,86.428,86.362,8.59338626]
[1646030734886,53.43901199,86.429,86.362,8.59338626]
[1646030736190,6.0,86.428,86.362,8.59338626]
[1646030736389,4.628,86.427,86.362,6.0]
[1646030736588,6.0,86.426,86.362,6.0]
[1646030736787,4.628,86.425,86.362,6.0]
[1646030736988,17.3762,86.42,86.354,6.0]
[1646030737189,6.0,86.419,86.353,6.0]
[1646030737889,4.63,86.418,86.353,6.0]
[1646030738090,52.22730166,86.416,86.353,6.0]
[1646030738290,6.0,86.415,86.353,6.0]
[1646030738493,52.22730166,86.416,86.353,8.92214302]
[1646030739490,52.22730166,86.416,86.36,17.3712]
[1646030739692,52.22730166,86.416,86.362,8.63329646]
[1646030739891,52.22730166,86.416,86.363,6.0]
[1646030740095,4.63,86.44,86.363,6.0]
[1646030740293,6.0,86.439,86.363,6.0]
[1646030740592,6.0,86.45,86.365,2.61496148]
[1646030740792,6.0,86.457,86.366,6.0]
[1646030741196,60.98946789,86.456,86.366,6.0]
[1646030741401,10.628,86.455,86.366,6.0]
[1646030741595,13.37478921,86.455,86.371,2.76163671]
[1646030741795,13.37478921,86.455,86.372,6.0]
[1646030741994,2.74678921,86.454,86.372,6.0]
[1646030742194,10.628,86.453,86.372,6.0]
[1646030742594,2.74678921,86.452,86.372,6.0]
[1646030742793,10.628,86.451,86.372,6.0]
[1646030743293,10.628,86.451,86.381,30.9138238]
[1646030743495,10.628,86.451,86.381,28.54108769]
[1646030743695,10.628,86.451,86.382,2.9808694]
[1646030746403,4.628,86.451,86.39,17.3657]
[1646030746599,58.24267868,86.456,86.391,6.0]
[1646030746796,2.74678921,86.481,86.391,6.0]
[1646030746996,6.0,86.48,86.392,23.8655]
[1646030747197,6.0,86.48,86.393,9.00982532]
[1646030747598,6.0,86.48,86.395,2.35913115]
[1646030747797,6.0,86.48,86.396,6.0]
[1646030747998,49.43333613,86.479,86.397,8.63329646]
[1646030748199,49.43333613,86.479,86.398,6.0]
[1646030748600,6.0,86.478,86.411,26.79271873]
[1646030749202,115.3,86.477,86.41,17.3611]
[1646030749401,1.83491639,86.474,86.383,2.37717444]
[1646030749602,10.627,86.473,86.371,22.827]
[1646030749803,17.366,86.47,86.39,17.365]
[1646030750001,10.627,86.469,86.39,17.365]
[1646030750202,8.74678921,86.469,86.395,33.25333656]
[1646030750703,2.74678921,86.468,86.395,33.25333656]
[1646030750905,57.360001,86.466,86.395,33.25333656]
[1646030751103,6.0,86.465,86.395,33.25333656]
[1646030751403,8.74678921,86.465,86.395,33.25333656]
[1646030751607,2.74678921,86.464,86.395,33.25333656]
[1646030751804,6.0,86.463,86.395,33.25333656]
[1646030752203,2.74678921,86.462,86.395,33.25333656]
[1646030752403,6.0,86.461,86.395,33.25333656]
[1646030752804,2.74678921,86.46,86.395,33.25333656]
[1646030753805,6.0,86.459,86.395,33.25333656]
[1646030754208,2.74678921,86.458,86.395,33.25333656]
[1646030754406,6.0,86.457,86.395,33.25333656]
[1646030756310,115.3,86.456,86.39,17.365]
[1646030756510,115.3,86.456,86.372,3.04370109]
[1646030756511,115.3,86.454,86.372,3.04370109]
[1646030756812,10.628,86.453,86.373,46.0903]
[1646030757010,13.37478921,86.453,86.374,2.90048672]
[1646030757210,2.74678921,86.452,86.374,2.90048672]
[1646030757433,10.628,86.451,86.376,2.74174118]
[1646030757911,13.37478921,86.451,86.376,2.74174118]
[1646030759314,13.37478921,86.451,86.375,28.00480564]
[1646030759514,132.6702,86.45,86.33,148.4136]
[1646030759712,115.3,86.448,86.331,54.6167]
[1646030759913,115.3,86.446,86.332,2.28219651]
[1646030760112,115.3,86.444,86.333,6.0]
[1646030760320,115.3,86.439,86.333,6.0]
[1646030760613,1.41665958,86.436,86.335,3.05901615]
[1646030760813,115.3,86.434,86.336,6.0]
[1646030761013,1.81912523,86.431,86.336,6.0]
[1646030761215,116.76973274,86.429,86.336,6.0]
[1646030761415,115.3,86.427,86.336,6.0]
[1646030761614,12.17528911,86.428,86.331,48.6167]
[1646030761615,115.3,86.417,86.331,48.6167]
[1646030761819,6.15872724,86.416,86.331,48.6167]
[1646030762014,1.4091936,86.414,86.331,48.6167]
[1646030762214,115.3,86.409,86.331,48.6167]
[1646030762413,115.3,86.407,86.331,48.6167]
[1646030762614,115.3,86.403,86.331,48.6167]
[1646030762817,117.09559321,86.401,86.331,48.6167]
[1646030763014,1.87433849,86.398,86.331,48.6167]
[1646030763314,115.3,86.396,86.331,48.6167]
[1646030763515,17.3831,86.39,86.331,48.6167]
[1646030763816,10.631,86.389,86.331,48.6167]
[1646030764013,13.37778921,86.389,86.331,48.6167]
[1646030764213,51.40752413,86.388,86.331,48.6167]
[1646030764418,10.631,86.387,86.331,48.6167]
[1646030764615,51.40752413,86.388,86.331,48.6167]
[1646030765619,51.40752413,86.388,86.332,36.0697744]
[1646030766318,51.40752413,86.388,86.331,48.6167]
[1646030766719,6.0,86.387,86.331,48.6167]
[1646030767119,6.0,86.387,86.332,3.09549389]
[1646030767318,1.44830945,86.427,86.332,3.09549389]
[1646030767319,4.631,86.414,86.333,6.0]
[1646030767518,6.0,86.413,86.333,6.0]
[1646030767718,6.0,86.414,86.333,6.0]
[1646030768121,6.0,86.414,86.334,2.74678921]
[1646030768319,54.97228936,86.413,86.341,2.96301489]
[1646030768519,6.0,86.412,86.342,6.0]
[1646030769122,6.0,86.412,86.336,6.0]
[1646030769522,6.0,86.412,86.361,0.75634692]
[1646030769720,6.0,86.412,86.361,3.78752242]
[1646030771121,6.0,86.437,86.37,17.37]
[1646030771718,6.0,86.445,86.37,17.37]
[1646030771922,42.90808654,86.444,86.371,23.7336]
[1646030772123,6.0,86.443,86.371,23.7336]
[1646030773841,34.98443754,86.442,86.371,23.7336]
[1646030774040,6.0,86.441,86.371,23.7336]
[1646030774644,40.98443754,86.441,86.371,23.7336]
[1646030775542,115.3,86.44,86.371,23.7336]
[1646030775742,115.3,86.438,86.371,23.7336]
[1646030775942,115.3,86.436,86.371,23.7336]
[1646030776241,121.3,86.435,86.371,23.7336]
[1646030776442,6.0,86.434,86.371,23.7336]
[1646030776642,53.61180532,86.434,86.371,23.7336]
[1646030777044,34.98443754,86.433,86.371,23.7336]
[1646030777246,60.48988342,86.431,86.371,23.7336]
[1646030777443,6.0,86.43,86.371,23.7336]
[1646030777644,58.35873754,86.43,86.371,23.7336]
[1646030777843,150.28443754,86.429,86.33,57.9101]
[1646030778043,115.3,86.427,86.337,23.6398]
[1646030778243,115.3,86.425,86.337,23.6398]
[1646030778544,116.654414,86.419,86.31,30.22092368]
[1646030778744,115.3,86.399,86.317,22.8713]
[1646030778944,115.3,86.396,86.317,22.8713]
[1646030779143,115.3,86.394,86.317,22.8713]
[1646030779344,115.3,86.392,86.317,22.8713]
[1646030779544,4.631,86.391,86.317,22.8713]
[1646030779748,115.3,86.389,86.317,22.8713]
[1646030779943,115.3,86.387,86.317,22.8713]
[1646030780145,55.58786634,86.384,86.317,22.8713]
[1646030780349,6.0,86.383,86.317,22.8713]
[1646030781350,115.3,86.381,86.318,6.0]
[1646030781549,115.3,86.379,86.318,6.0]
[1646030781750,115.3,86.377,86.292,6.0]
[1646030781950,1.69159749,86.374,86.292,6.0]
[1646030782152,115.3,86.37,86.292,6.0]
[1646030782352,115.3,86.368,86.292,6.0]
[1646030782549,115.3,86.366,86.292,6.0]
[1646030782750,17.3881,86.36,86.292,6.0]
[1646030783049,6.0,86.359,86.292,6.0]
[1646030783650,44.97362341,86.358,86.292,6.0]
[1646030783850,6.0,86.357,86.292,6.0]
[1646030785253,115.3,86.356,86.284,24.249]
[1646030785454,115.3,86.354,86.28,17.3879]
[1646030785654,115.3,86.349,86.261,2.64504088]
[1646030785852,115.3,86.347,86.262,28.8205]
[1646030786053,115.3,86.345,86.262,28.8205]
[1646030786253,56.00535003,86.342,86.263,28.92670046]
[1646030786452,56.00535003,86.342,86.264,6.0]
[1646030786453,6.0,86.341,86.264,6.0]
[1646030788758,22.0261,86.34,86.264,6.0]
[1646030788958,115.3,86.338,86.263,6.57939878]
[1646030789258,115.3,86.336,86.263,6.57939878]
[1646030789458,125.935,86.335,86.263,0.57939878]
[1646030789660,1.87431552,86.334,86.263,0.57939878]
[1646030789857,115.3,86.329,86.263,0.57939878]
[1646030790060,115.3,86.325,86.263,0.57939878]
[1646030790257,10.635,86.324,86.263,0.57939878]
[1646030790458,17.3961,86.32,86.263,0.57939878]
[1646030790658,10.635,86.319,86.263,0.57939878]
[1646030790858,45.61943754,86.319,86.263,6.57939878]
[1646030791063,1.67309553,86.315,86.221,2.33489608]
[1646030791262,115.3,86.309,86.221,2.33489608]
[1646030791465,4.636,86.308,86.221,2.33489608]
[1646030791762,115.3,86.306,86.221,2.33489608]
[1646030791964,17.4002,86.3,86.222,31.64887163]
[1646030792261,10.636,86.299,86.223,2.56948986]
[1646030792462,10.636,86.299,86.224,29.3928]
[1646030792666,10.636,86.299,86.225,2.66450944]
[1646030792863,10.636,86.299,86.226,6.0]
[1646030795473,6.0,86.299,86.226,6.0]
[1646030795671,6.0,86.303,86.226,8.74678921]
[1646030796069,6.0,86.303,86.23,16.68]
[1646030796268,6.0,86.303,86.25,17.3935]
[1646030796469,6.0,86.303,86.252,6.10491131]
[1646030797672,4.636,86.341,86.26,17.3919]
[1646030797872,4.634,86.359,86.261,8.97283535]
[1646030798070,31.72564938,86.367,86.253,6.0]
[1646030798287,17.3875,86.37,86.261,5.05527726]
[1646030798474,44.33227306,86.369,86.263,2.92040271]
[1646030798713,47.07906227,86.369,86.265,31.64887163]
[1646030798910,6.0,86.368,86.266,8.78962202]
[1646030799305,6.0,86.368,86.266,11.53641123]
[1646030799505,6.0,86.368,86.27,17.3856]
[1646030799705,23.3129,86.367,86.271,8.99660081]
[1646030799907,6.0,86.366,86.271,6.0]
[1646030800908,28.34426271,86.365,86.281,8.75831129]
[1646030801106,6.0,86.364,86.282,22.7406]
[1646030801308,6.0,86.364,86.283,3.08525239]
[1646030801510,28.34426271,86.363,86.283,3.08525239]
[1646030801706,6.0,86.362,86.283,3.08525239]
[1646030802109,6.0,86.362,86.29,17.3857]
[1646030802307,6.0,86.365,86.291,9.04181494]
[1646030802509,6.0,86.368,86.291,9.04181494]
[1646030804809,118.04678921,86.367,86.29,17.3857]
[1646030805010,125.933,86.366,86.282,25.48330239]
[1646030805214,156.28695192,86.366,86.282,25.48330239]
[1646030805409,27.60716271,86.365,86.282,25.48330239]
[1646030805615,10.633,86.364,86.283,2.32948691]
[1646030805816,6.0,86.364,86.284,6.0]
[1646030806209,6.0,86.367,86.284,6.0]
[1646030806611,6.0,86.367,86.291,2.62774011]
[1646030807411,6.0,86.367,86.292,6.0]
[1646030807611,6.0,86.367,86.294,33.99647797]
[1646030808011,6.0,86.367,86.295,2.91801172]
[1646030808611,6.0,86.367,86.296,6.0]
[1646030809413,4.633,86.378,86.296,6.0]
[1646030809623,2.74678921,86.399,86.296,30.9402]
[1646030809624,4.633,86.39,86.296,30.9402]
[1646030809816,4.632,86.396,86.297,2.32966714]
[1646030810014,6.0,86.395,86.298,6.0]
[1646030810214,4.632,86.394,86.299,115.3]
[1646030810415,6.0,86.393,86.31,16.68]
[1646030810614,6.0,86.393,86.311,37.28284643]
[1646030810820,6.0,86.393,86.312,118.00005054]
[1646030811018,6.0,86.395,86.314,115.3]
[1646030811214,6.0,86.395,86.316,115.3]
[1646030811415,6.0,86.395,86.318,115.3]
[1646030811616,6.0,86.395,86.321,2.43008946]
[1646030811816,6.0,86.395,86.322,6.0]
[1646030812115,6.0,86.395,86.322,8.74678921]
[1646030812314,6.0,86.395,86.322,31.91078921]
[1646030812515,6.0,86.395,86.34,17.3742]
[1646030812715,6.0,86.395,86.342,29.04225097]
[1646030812917,6.0,86.395,86.343,2.43491705]
[1646030814116,6.0,86.421,86.343,2.43491705]
[1646030814315,6.0,86.421,86.344,23.9145]
[1646030814515,6.0,86.422,86.345,2.64590124]
[1646030814915,53.17557825,86.421,86.345,2.64590124]
[1646030815115,53.17557825,86.421,86.35,17.3733]
[1646030815318,53.17557825,86.421,86.351,8.56071364]
[1646030815715,53.17557825,86.421,86.351,6.0]
[1646030815918,53.17557825,86.421,86.347,6.0]
[1646030816519,4.63,86.449,86.37,17.3684]
[1646030816720,6.0,86.438,86.371,3.0186768]
[1646030817123,6.0,86.448,86.372,6.0]
[1646030817318,4.628,86.455,86.372,6.0]
[1646030817319,6.0,86.454,86.372,6.0]
[1646030817518,51.73956443,86.453,86.38,17.3671]
[1646030817719,51.73956443,86.453,86.381,26.48134154]
[1646030817720,6.0,86.452,86.381,26.48134154]
[1646030817921,4.628,86.451,86.382,3.11000466]
[1646030818222,6.0,86.45,86.382,3.11000466]
[1646030818423,33.60716271,86.45,86.382,3.11000466]
[1646030818923,27.60716271,86.449,86.382,3.11000466]
[1646030819122,6.0,86.448,86.382,3.11000466]
[1646030820522,10.628,86.448,86.382,3.11000466]
[1646030821125,6.0,86.448,86.382,3.11000466]
[1646030821326,6.0,86.451,86.382,3.11000466]
[1646030821528,4.628,86.45,86.382,3.11000466]
[1646030821727,6.0,86.449,86.382,3.11000466]
[1646030821927,4.628,86.448,86.382,3.11000466]
[1646030822225,6.0,86.447,86.382,3.11000466]
[1646030822426,6.0,86.447,86.39,17.3651]
[1646030822624,6.0,86.447,86.391,30.38017229]
[1646030822827,6.0,86.452,86.392,2.91936958]
[1646030824127,33.60716271,86.452,86.383,8.46906549]
[1646030824326,33.60716271,86.452,86.383,2.46906549]
[1646030825033,33.60716271,86.452,86.384,29.24510209]
[1646030826036,6.0,86.452,86.39,17.3653]
[1646030826241,6.0,86.452,86.391,8.56216921]
[1646030826632,6.0,86.452,86.391,6.0]
[1646030826835,6.0,86.451,86.384,29.24510209]
[1646030827234,6.0,86.451,86.385,6.0]
[1646030827434,6.0,86.452,86.385,6.0]
[1646030827635,6.0,86.452,86.382,3.00314581]
[1646030828737,6.0,86.452,86.383,29.27717428]
[1646030830139,24.8209,86.462,86.384,8.55752469]
[1646030830338,24.8209,86.462,86.384,11.3043139]
[1646030830637,24.8209,86.462,86.39,17.3654]
[1646030830837,24.8209,86.462,86.391,9.03999669]
[1646030831238,56.69381334,86.461,86.391,9.03999669]
[1646030831637,56.69381334,86.461,86.392,23.4562]
[1646030831841,56.69381334,86.461,86.393,8.58546074]
[1646030832038,4.628,86.479,86.4,17.3632]
[1646030832239,4.627,86.494,86.401,8.77924271]
[1646030832457,6.0,86.493,86.401,6.0]
[1646030832653,36.16146602,86.507,86.401,8.59806781]
[1646030832854,27.60716271,86.493,86.401,8.59806781]
[1646030833054,60.60478766,86.491,86.402,8.47660866]
[1646030833259,1.43673555,86.489,86.403,6.0]
[1646030833459,1.87443757,86.487,86.403,6.0]
[1646030833658,1.58332982,86.485,86.404,24.9614]
[1646030833857,10.627,86.484,86.404,24.9614]
[1646030834254,38.23416271,86.484,86.404,24.9614]
[1646030834456,42.9438895,86.483,86.404,24.9614]
[1646030834654,10.627,86.482,86.404,24.9614]
[1646030837063,4.627,86.482,86.404,24.9614]
[1646030837261,6.0,86.481,86.404,24.9614]
[1646030837460,7.86509293,86.486,86.404,24.9614]
[1646030837660,4.627,86.485,86.404,24.9614]
[1646030837960,4.627,86.488,86.411,2.27778444]
[1646030838160,23.6479,86.489,86.411,2.27778444]
[1646030838161,6.0,86.487,86.411,2.27778444]
[1646030838361,23.6479,86.489,86.412,6.0]
[1646030838561,1.63396006,86.506,86.412,8.74678921]
[1646030839062,4.626,86.505,86.42,17.3588]
[1646030839260,1.8127585,86.534,86.421,56.6171857]
[1646030839261,4.626,86.524,86.421,56.6171857]
[1646030839461,1.8127585,86.534,86.421,56.6171857]
[1646030839462,30.5367,86.523,86.422,2.8189708]
[1646030839660,6.23064787,86.522,86.423,6.0]
[1646030839863,6.0,86.521,86.423,6.0]
[1646030840062,49.58459641,86.52,86.43,17.3553]
[1646030840261,44.95959641,86.52,86.431,123.80224745]
[1646030840464,44.95959641,86.52,86.432,3.0446998]
[1646030840664,44.95959641,86.52,86.433,6.0]
[1646030840864,44.95959641,86.52,86.434,23.1048]
[1646030841065,44.95959641,86.52,86.435,8.36139628]
[1646030841265,6.0,86.519,86.435,8.36139628]
[1646030841463,44.95959641,86.52,86.45,17.3517]
[1646030841663,44.95959641,86.52,86.451,17.80351999]
[1646030841863,44.95959641,86.52,86.452,2.58716985]
[1646030842064,44.95959641,86.52,86.453,6.0]
[1646030842269,24.2025,86.533,86.453,8.58472008]
[1646030842469,24.2025,86.533,86.453,17.36472008]
[1646030842663,24.2025,86.533,86.46,17.351]
[1646030842866,6.0,86.532,86.461,8.48701409]
[1646030843267,56.16655967,86.531,86.461,8.48701409]
[1646030843467,1.69184297,86.529,86.453,22.6608]
[1646030843667,115.3,86.527,86.453,22.6608]
[1646030843873,1.69184297,86.529,86.453,22.6608]
[1646030843874,122.92792773,86.526,86.453,22.6608]
[1646030844167,6.0,86.526,86.454,2.97302788]
[1646030844366,56.16655967,86.531,86.454,2.97302788]
[1646030844367,4.624,86.525,86.454,2.97302788]
[1646030844566,6.0,86.524,86.454,2.97302788]
[1646030844767,6.0,86.524,86.453,22.6608]
[1646030845168,6.0,86.529,86.453,22.6608]
[1646030845369,4.624,86.528,86.453,22.6608]
[1646030845569,6.0,86.527,86.453,22.6608]
[1646030845770,4.624,86.526,86.453,22.6608]
[1646030845969,6.0,86.525,86.453,22.6608]
[1646030846375,6.0,86.529,86.453,22.6608]
[1646030846569,4.624,86.528,86.453,22.6608]
[1646030846770,6.0,86.527,86.453,22.6608]
[1646030847070,4.624,86.526,86.461,2.25268866]
[1646030847272,6.0,86.525,86.461,2.25268866]
[1646030847471,6.0,86.527,86.461,2.25268866]
[1646030847870,6.0,86.53,86.46,17.3509]
[1646030848070,7.52949316,86.53,86.46,17.3509]
[1646030848276,56.16655967,86.531,86.461,6.0]
[1646030848474,56.16655967,86.531,86.461,9.08184892]
[1646030848773,56.16655967,86.531,86.471,28.8535349]
[1646030848973,56.16655967,86.531,86.472,6.0]
[1646030849771,24.2799,86.536,86.472,6.0]
[1646030849971,4.624,86.549,86.48,17.347]
[1646030850175,6.0,86.548,86.481,8.94187539]
[1646030850371,1.84620701,86.572,86.482,6.0]
[1646030850372,24.44727736,86.565,86.482,6.0]
[1646030850577,74.34951006,86.631,86.49,16.68]
[1646030850787,53.57072988,86.63,86.494,69.23]
[1646030850978,74.34951006,86.631,86.531,115.3]
[1646030851173,74.34951006,86.631,86.494,69.65]
[1646030851174,4.619,86.667,86.541,2.77451316]
[1646030851373,4.618,86.672,86.543,115.3]
[1646030851676,4.618,86.672,86.546,2.59130158]
[1646030851875,4.618,86.69,86.56,16.68]
[1646030852074,58.5624619,86.671,86.59,17.3219]
[1646030852275,4.617,86.67,86.591,2.46103788]
[1646030852477,6.0,86.669,86.591,2.46103788]
[1646030852875,4.617,86.668,86.562,2.27594121]
[1646030853076,6.0,86.667,86.563,6.0]
[1646030853278,4.618,86.666,86.563,6.0]
[1646030853583,6.0,86.665,86.563,6.0]
[1646030853777,4.618,86.664,86.58,17.328]
[1646030853977,4.618,86.664,86.563,6.0]
[1646030853978,6.0,86.663,86.581,9.00441392]
[1646030854180,6.0,86.663,86.581,6.0]
[1646030854379,6.0,86.669,86.572,6.0]
[1646030854578,2.74678921,86.662,86.571,2.48911824]
[1646030854778,10.618,86.661,86.562,2.62912921]
[1646030854980,10.618,86.661,86.563,6.0]
[1646030855181,20.07518921,86.66,86.57,17.3284]
[1646030855379,10.618,86.659,86.571,2.450637]
[1646030855579,52.06453001,86.658,86.571,2.450637]
[1646030855881,6.0,86.657,86.571,2.450637]
[1646030857881,17.3303,86.65,86.571,2.450637]
[1646030858080,6.0,86.649,86.571,2.450637]
[1646030858281,4.618,86.648,86.551,2.72729644]
[1646030858480,6.0,86.647,86.552,6.0]
[1646030858680,4.618,86.646,86.552,6.0]
[1646030858880,45.15655124,86.644,86.552,6.0]
[1646030859079,45.15655124,86.644,86.554,2.57422311]
[1646030859283,45.15655124,86.644,86.555,6.0]
[1646030859481,10.618,86.643,86.56,17.3318]
[1646030859687,10.618,86.643,86.561,9.03280749]
[1646030860082,10.618,86.643,86.561,6.0]
[1646030860281,10.618,86.643,86.554,8.65427914]
[1646030861483,10.618,86.643,86.57,17.3284]
[1646030861685,10.618,86.643,86.571,2.48774869]
[1646030862483,17.3319,86.64,86.571,2.48774869]
[1646030862685,45.15655124,86.644,86.58,132.6276]
[1646030862984,45.15655124,86.644,86.583,2.37370225]
[1646030863186,45.15655124,86.644,86.584,6.0]
[1646030863787,4.618,86.7,86.6,17.3233]
[1646030863990,6.0,86.699,86.601,2.57085884]
[1646030864187,4.616,86.698,86.591,2.92155068]
[1646030864392,6.0,86.697,86.592,6.0]
[1646030864587,4.616,86.696,86.592,6.0]
[1646030864787,53.3126659,86.694,86.592,6.0]
[1646030864991,10.616,86.693,86.592,6.0]
[1646030865488,10.616,86.693,86.61,17.3217]
[1646030865489,17.3225,86.69,86.61,17.3217]
[1646030865689,10.616,86.689,86.611,2.51748216]
[1646030866814,6.0,86.689,86.62,17.3197]
[1646030867019,53.3126659,86.694,86.621,9.02524011]
[1646030867020,6.0,86.692,86.621,9.02524011]
[1646030867220,6.0,86.693,86.621,9.02524011]
[1646030867414,6.0,86.693,86.621,6.0]
[1646030867614,6.0,86.693,86.621,8.83166025]
[1646030868617,6.0,86.693,86.631,2.39115212]
[1646030869521,6.0,86.693,86.632,6.0]
[1646030870519,6.0,86.693,86.64,17.3154]
[1646030870721,6.0,86.693,86.641,8.75911395]
[1646030873731,4.615,86.715,86.641,8.75911395]
[1646030873927,4.614,86.743,86.65,17.3139]
[1646030874129,4.614,86.737,86.651,8.6999738]
[1646030874324,4.614,86.745,86.651,8.6999738]
[1646030874525,4.614,86.745,86.651,6.0]
[1646030874728,49.20900117,86.728,86.644,6.0]
[1646030875126,6.0,86.727,86.644,6.0]
[1646030875427,6.0,86.727,86.65,17.3124]
[1646030875626,6.0,86.727,86.651,8.78511016]
[1646030876126,4.614,86.726,86.651,2.78511016]
[1646030876326,6.0,86.725,86.651,2.78511016]
[1646030876526,4.614,86.724,86.651,2.78511016]
[1646030876828,6.0,86.723,86.651,2.78511016]
[1646030877026,6.0,86.723,86.631,3.10732696]
[1646030877027,7.36078921,86.715,86.631,3.10732696]
[1646030877228,56.8531403,86.714,86.622,2.9485392]
[1646030877430,4.615,86.713,86.622,2.9485392]
[1646030877627,6.0,86.712,86.622,2.9485392]
[1646030877827,119.915,86.711,86.622,2.9485392]
[1646030878029,115.3,86.709,86.622,2.9485392]
[1646030878228,10.615,86.708,86.622,2.9485392]
[1646030878629,8.74678921,86.708,86.623,6.0]
[1646030878830,4.615,86.707,86.623,6.0]
[1646030879032,6.0,86.706,86.623,6.0]
[1646030879229,4.615,86.705,86.63,17.3179]
[1646030879429,6.0,86.704,86.631,2.8881837]
[1646030879830,4.615,86.703,86.622,2.36933]
[1646030880032,51.21780197,86.701,86.622,2.36933]
[1646030880229,10.615,86.7,86.622,2.36933]
[1646030880429,27.935,86.7,86.622,2.36933]
[1646030880633,2.74678921,86.699,86.622,2.36933]
[1646030880930,6.0,86.698,86.622,2.36933]